fUST/lending_fUST_20250505
["ID","MTS","AMOUNT","RATE_DAILY","PERIOD"]
[359954129,1746445872914,-4805.41,0.00036712,14]
[359954131,1746445872924,-400.0,0.00036712,14]
[359954133,1746445872933,-158.78190296,0.00036712,14]
[359954135,1746445872942,-404.24,0.00036712,14]
[359954137,1746445872951,-400.0,0.00036712,14]
[359954139,1746445872960,-400.0,0.00036712,14]
[359954141,1746445872969,-400.0,0.00036712,14]
[359954142,1746445872978,-375.55215787,0.00036712,14]
[359954143,1746445872987,-400.0,0.00036712,14]
[359954145,1746445872996,-400.0,0.00036712,14]
[359954147,1746445873006,-400.0,0.00036712,14]
[359954148,1746445873015,-400.0,0.00036712,14]
[359954150,1746445873024,-1812.36,0.00036712,14]
[359954151,1746445873034,-400.0,0.00036712,14]
[359954153,1746445873043,-400.0,0.00036712,14]
[359954154,1746445873052,-29855.5,0.00036712,14]
[359954156,1746445873061,-400.0,0.00036712,14]
[359954157,1746445873071,-1426.81,0.00036712,14]
[359954159,1746445873080,-400.0,0.00036712,14]
[359954160,1746445873090,-400.0,0.00036712,14]
[359954162,1746445873100,-400.0,0.00036712,14]
[359954163,1746445873110,-400.0,0.00036712,14]
[359954165,1746445873119,-1741.294766,0.00036712,2]
[359954166,1746445873129,-400.0,0.00036712,14]
[359954168,1746445873139,-855.38,0.00036712,14]
[359954169,1746445873147,-1741.294766,0.00036712,2]
[359954171,1746445873157,-400.0,0.00036712,14]
[359954172,1746445873166,-2479.52,0.00036712,14]
[359954174,1746445873175,-524.72906108,0.00036712,14]
[359954176,1746445873186,-400.0,0.00036712,14]
[359954177,1746445873195,-400.0,0.00036712,14]
[359954179,1746445873204,-400.0,0.00036712,14]
[359954181,1746445873215,-1796.47,0.00036712,14]
[359954182,1746445873224,-407.13546785,0.00036712,14]
[359954184,1746445873234,-1141.43,0.00036712,14]
[359954186,1746445873243,-400.0,0.00036712,14]
[359954187,1746445873252,-447.17,0.00036712,14]
[359954189,1746445873261,-2955.02,0.00036712,14]
[359954191,1746445873270,-400.0,0.00036712,14]
[359954192,1746445873280,-400.0,0.00036712,14]
[359954194,1746445873290,-7976.56,0.00036712,14]
[359954195,1746445873299,-12535.79,0.00036712,14]
[359954197,1746445873308,-400.0,0.00036712,14]
[359954199,1746445873318,-400.0,0.00036712,14]
[359954200,1746445873327,-524.37,0.00036712,14]
[359954202,1746445873336,-526.88,0.00036712,14]
[359954204,1746445873345,-400.0,0.00036712,14]
[359954205,1746445873355,-400.0,0.00036712,14]
[359954207,1746445873367,-385.52385753,0.00036762,35]
[359954209,1746445873376,-392.74282349,0.00036769,2]
[359954210,1746445873385,-385.52385753,0.00036934,35]
[359954212,1746445873395,-500.0,0.00036973,5]
[359954213,1746445873405,-400.0,0.00036986,14]
[359954215,1746445873414,-400.0,0.00036986,14]
[359954217,1746445873423,-400.0,0.00036986,14]
[359954218,1746445873434,-400.0,0.00036986,14]
[359954220,1746445873445,-350.45278923,0.00036986,14]
[359954222,1746445873454,-400.0,0.00036986,14]
[359954223,1746445873463,-400.0,0.00036986,14]
[359954225,1746445873472,-400.0,0.00036986,14]
[359954227,1746445873482,-400.0,0.00036986,14]
[359954228,1746445873491,-400.0,0.00036986,14]
[359954230,1746445873501,-400.0,0.00036986,14]
[359954232,1746445873510,-406.708403,0.00036986,14]
[359954233,1746445873519,-400.0,0.00036986,14]
[359954235,1746445873529,-226.01153018,0.00036986,14]
[359954237,1746445873538,-400.0,0.00036986,14]
[359954238,1746445873547,-752.32,0.00036986,14]
[359954240,1746445873556,-400.0,0.00036986,14]
[359954242,1746445873565,-400.0,0.00036986,14]
[359954243,1746445873575,-400.0,0.00036986,14]
[359954245,1746445873584,-400.0,0.00036986,14]
[359954247,1746445873593,-919.64,0.00036986,14]
[359954249,1746445873602,-400.0,0.00036986,14]
[359954251,1746445873611,-400.0,0.00036986,14]
[359954253,1746445873621,-400.0,0.00036986,14]
[359954255,1746445873630,-400.0,0.00036986,14]
[359954257,1746445873639,-400.0,0.00036986,14]
[359954259,1746445873648,-400.0,0.00036986,14]
[359954261,1746445873657,-400.0,0.00036986,14]
[359954263,1746445873667,-400.0,0.00036986,14]
[359954265,1746445873677,-400.0,0.00036986,14]
[359954267,1746445873686,-400.0,0.00036986,14]
[359954269,1746445873696,-400.0,0.00036986,14]
[359954271,1746445873705,-744.69,0.00036986,14]
[359954273,1746445873715,-1440.06,0.00036986,14]
[359954275,1746445873725,-400.0,0.00036986,14]
[359954277,1746445873734,-408.08272637,0.00036986,14]
[359954279,1746445873743,-400.0,0.00036986,14]
[359954281,1746445873752,-400.0,0.00036986,14]
[359954283,1746445873762,-459.61,0.00036986,14]
[359954285,1746445873772,-400.0,0.00036986,14]
[359954287,1746445873781,-315.64124252,0.00036986,14]
[359954289,1746445873790,-411.73645313,0.00036986,14]
[359954291,1746445873800,-1757.66,0.00036986,14]
[359954294,1746445873921,-400.0,0.00036986,14]
[359954295,1746445873932,-973.01,0.00036986,14]
[359954296,1746445873944,-400.0,0.00036986,14]
[359954297,1746445873953,-400.0,0.00036986,14]
[359954298,1746445873962,-400.0,0.00036986,14]
[359954299,1746445873971,-400.0,0.00036986,14]
[359954300,1746445873980,-400.0,0.00036986,14]
[359954301,1746445873989,-400.0,0.00036986,14]
[359954302,1746445873999,-177.41066683,0.00036986,14]
[359954303,1746445874008,-595.45,0.00036986,14]
[359954304,1746445874017,-400.0,0.00036986,14]
[359954305,1746445874026,-400.0,0.00036986,14]
[359954306,1746445874036,-1163.63,0.00036986,14]
[359954307,1746445874045,-931.15,0.00036986,14]
[359954308,1746445874054,-400.0,0.00036986,14]
[359954310,1746445874064,-424.79,0.00036986,14]
[359954311,1746445874073,-754.93,0.00036986,14]
[359954313,1746445874083,-400.0,0.00036986,14]
[359954315,1746445874093,-343.62576981,0.00036986,14]
[359954539,1746446841122,-160.0,0.00026573,2]
[359954540,1746446841144,-8.79125147,0.00027397,2]
[359954541,1746446847089,-375.94485853,0.00027397,2]
[359954542,1746446847109,-182.08685211,0.00027843,2]
[359954543,1746446847130,-160.0,0.00027943,2]
[359954544,1746446847151,-344.27777,0.000298,120]
[359954545,1746446847170,-160.0,0.00030957,2]
[359954546,1746446847191,-360.31180245,0.00030959,2]
[359954547,1746446911986,-1007.0,0.00024953,10]
[359954548,1746446954070,-171.2521057,0.00024953,10]
[359954549,1746446954090,-156.59574738,0.00030959,2]
[359954550,1746446962196,207.19622867,0.00028,15]
[359954559,1746447032469,-570.10663621,0.00028,15]
[359954560,1746447032482,-239.96505963,0.00028,15]
[359954561,1746447032492,-494.96694179,0.00028859,2]
[359954562,1746447032502,-111.20011659,0.00031886,2]
[359954563,1746447032522,-301.81913841,0.00031886,2]
[359954564,1746447032531,-300.0,0.00032198,2]
[359954565,1746447032541,-253.36038881,0.00032198,2]
[359954567,1746447032551,-24900.0,0.00032199,2]
[359954569,1746447032561,-370.83078184,0.000329,27]
[359954571,1746447032570,-384.73611,0.00033165,2]
[359954573,1746447032580,-370.83078155,0.00033176,28]
[359954575,1746447032589,-370.83078155,0.00033452,28]
[359954577,1746447032599,-370.83078155,0.00033728,29]
[359954578,1746447032608,-494.96694179,0.00033859,2]
[359954579,1746447032618,-420.85353698,0.00033979,2]
[359954580,1746447032628,-370.83078155,0.00034003,30]
[359954581,1746447032638,-370.83078155,0.00034279,30]
[359954582,1746447032647,-370.83078155,0.00034555,31]
[359954583,1746447032658,-157.72,0.00034612,2]
[359954585,1746447032668,-370.83078155,0.00034831,31]
[359954587,1746447032677,-935.1261219,0.0003493,4]
[359954588,1746447032687,-11231.64,0.00034989,7]
[359954589,1746447032696,-182.23035355,0.00034989,7]
[359954590,1746447032706,-370.83078155,0.00035107,32]
[359954591,1746447032715,-370.83078155,0.00035383,32]
[359954592,1746447032725,-12607.13495863,0.00035466,2]
[359954593,1746447032735,-160.0,0.00035466,2]
[359954594,1746447032749,-182.23035355,0.00035469,2]
[359954595,1746447032758,-841.77443764,0.00035469,2]
[359954596,1746447032768,-160.0,0.00035469,2]
[359954597,1746447032777,-421.83547488,0.00035469,2]
[359954598,1746447032786,-378.95438742,0.00035471,7]
[359954599,1746447032796,-630.7279445,0.00035471,7]
[359954600,1746447032806,-1356.4260866,0.00035516,2]
[359954601,1746447032817,-1122.3168959,0.00035516,2]
[359954602,1746447032828,-1100.0,0.00035534,60]
[359954603,1746447032838,-150.0,0.00035583,2]
[359954604,1746447032847,-1122.31689586,0.00035585,2]
[359954605,1746447032857,-912.55385178,0.00035606,3]
[359954606,1746447032867,-353.31,0.00035606,3]
[359954607,1746447032876,-176.66,0.00035606,3]
[359954608,1746447032886,-530.0,0.00035606,3]
[359954609,1746447032895,-400.0,0.00035615,3]
[359954610,1746447032905,-400.44101049,0.00035616,14]
[359954611,1746447032915,-400.0,0.00035616,14]
[359954612,1746447032924,-400.0,0.00035616,14]
[359954613,1746447032933,-400.0,0.00035616,14]
[359954614,1746447032943,-400.0,0.00035616,14]
[359954615,1746447032952,-401.11380951,0.00035616,14]
[359954616,1746447032962,-400.0,0.00035616,14]
[359954617,1746447032972,-400.0,0.00035616,14]
[359954618,1746447032982,-506.25626387,0.00035616,14]
[359954619,1746447032991,-230.72638221,0.00035616,14]
[359954620,1746447033001,-400.0,0.00035616,14]
[359954621,1746447033011,-400.0,0.00035616,14]
[359954622,1746447033020,-400.0,0.00035616,14]
[359954623,1746447033030,-504.4718993,0.00035616,14]
[359954624,1746447033039,-400.0,0.00035616,14]
[359954625,1746447033049,-400.0,0.00035616,14]
[359954626,1746447033059,-501.38841628,0.00035616,14]
[359954627,1746447033068,-400.0,0.00035616,14]
[359954628,1746447033078,-400.0,0.00035616,14]
[359954629,1746447033088,-400.0,0.00035616,14]
[359954630,1746447033098,-400.0,0.00035616,14]
[359954631,1746447033107,-501.31043889,0.00035616,14]
[359954632,1746447033117,-400.0,0.00035616,14]
[359954633,1746447033126,-400.24305523,0.00035616,2]
[359954634,1746447033136,-500.0,0.00035616,14]
[359954635,1746447033146,-400.0,0.00035616,14]
[359954636,1746447033156,-400.0,0.00035616,14]
[359954637,1746447033166,-854.21,0.00035616,14]
[359954638,1746447033176,-400.0,0.00035616,14]
[359954639,1746447033186,-214.4004236,0.00035616,14]
[359954640,1746447033197,-400.0,0.00035616,14]
[359954641,1746447033206,-400.0,0.00035616,14]
[359954642,1746447033216,-400.0,0.00035616,14]
[359954643,1746447033225,-400.0,0.00035616,14]
[359954644,1746447033234,-400.0,0.00035616,14]
[359954645,1746447033244,-400.0,0.00035616,14]
[359954646,1746447033253,-400.0,0.00035616,14]
[359954647,1746447033263,-400.0,0.00035616,14]
[359954648,1746447033273,-400.0,0.00035616,14]
[359954649,1746447033282,-400.0,0.00035616,14]
[359954650,1746447033292,-400.0,0.00035616,14]
[359954651,1746447033301,-400.0,0.00035616,14]
[359954652,1746447033312,-403.96761852,0.00035616,14]
[359954653,1746447033322,-423.48940489,0.00035616,14]
[359954654,1746447033331,-400.0,0.00035616,14]
[359954655,1746447033340,-400.0,0.00035616,14]
[359954656,1746447033349,-400.0,0.00035616,14]
[359954657,1746447033360,-398.76994776,0.00035616,14]
[359954658,1746447033370,-500.0,0.00035616,14]
[359954659,1746447033379,-400.0,0.00035616,14]
[359954660,1746447033389,-400.0,0.00035616,14]
[359954661,1746447033399,-400.0,0.00035616,14]
[359954662,1746447033409,-400.0,0.00035616,14]
[359954663,1746447033419,-400.0,0.00035616,14]
[359954664,1746447033428,-400.0,0.00035616,14]
[359954665,1746447033438,-400.0,0.00035616,14]
[359954666,1746447033448,-400.0,0.00035616,14]
[359954667,1746447033458,-400.0,0.00035616,14]
[359954668,1746447033468,-400.0,0.00035616,14]
[359954669,1746447033477,-400.0,0.00035616,14]
[359954670,1746447033487,-403.18437504,0.00035616,14]
[359954671,1746447033497,-400.0,0.00035616,14]
[359954672,1746447033506,-400.0,0.00035616,14]
[359954673,1746447033515,-500.0,0.00035616,2]
[359954674,1746447033524,-400.0,0.00035616,14]
[359954675,1746447033533,-400.0,0.00035616,14]
[359954676,1746447033543,-400.0,0.00035616,14]
[359954677,1746447033552,-400.0,0.00035616,14]
[359954678,1746447033563,-400.0,0.00035616,14]
[359954679,1746447033573,-400.0,0.00035616,14]
[359954680,1746447033584,-400.0,0.00035616,14]
[359954681,1746447033594,-504.71898235,0.00035616,14]
[359954682,1746447033604,-525.46364915,0.00035616,14]
[359954683,1746447033615,-400.0,0.00035616,14]
[359954684,1746447033625,-400.0,0.00035616,14]
[359954685,1746447033635,-400.0,0.00035616,14]
[359954686,1746447033645,-400.0,0.00035616,14]
[359954687,1746447033656,-1292.12,0.00035616,14]
[359954688,1746447033665,-400.0,0.00035616,14]
[359954689,1746447033675,-400.0,0.00035616,14]
[359954690,1746447033686,-400.0,0.00035616,14]
[359954691,1746447033697,-400.0,0.00035616,14]
[359954692,1746447033707,-400.0,0.00035616,14]
[359954693,1746447033718,-400.0,0.00035616,14]
[359954694,1746447033728,-513.05568798,0.00035616,14]
[359954695,1746447033741,-541.29,0.00035616,14]
[359954696,1746447033752,-400.0,0.00035616,14]
[359954697,1746447033762,-400.0,0.00035616,14]
[359954698,1746447033772,-500.91484984,0.00035616,14]
[359954699,1746447033782,-400.0,0.00035616,14]
[359954700,1746447033792,-400.0,0.00035616,14]
[359954701,1746447033803,-400.0,0.00035616,14]
[359954702,1746447033814,-500.0,0.00035616,14]
[359954703,1746447033823,-1000.0,0.00035616,14]
[359954704,1746447033833,-400.0,0.00035616,14]
[359954705,1746447033843,-400.0,0.00035616,14]
[359954706,1746447033852,-400.0,0.00035616,14]
[359954707,1746447033862,-200.07702048,0.00035616,14]
[359954708,1746447033872,-400.0,0.00035616,14]
[359954709,1746447033882,-502.33587833,0.00035616,14]
[359954710,1746447033893,-400.14815938,0.00035616,14]
[359954711,1746447033903,-400.0,0.00035616,14]
[359954712,1746447033913,-400.0,0.00035616,14]
[359954713,1746447033922,-400.0,0.00035616,14]
[359954714,1746447033932,-400.0,0.00035616,14]
[359954715,1746447033941,-401.37620539,0.00035616,14]
[359954716,1746447033951,-400.0,0.00035616,14]
[359954717,1746447033961,-400.0,0.00035616,14]
[359954718,1746447033971,-400.0,0.00035616,14]
[359954719,1746447033980,-400.0,0.00035616,14]
[359954720,1746447033990,-400.0,0.00035616,14]
[359954721,1746447033999,-522.29543877,0.00035616,14]
[359954722,1746447034009,-489.82,0.00035616,14]
[359954723,1746447034018,-400.0,0.00035616,14]
[359954724,1746447034028,-400.0,0.00035616,14]
[359954725,1746447034038,-402.82879292,0.00035616,14]
[359954726,1746447034048,-358.0,0.00035616,14]
[359954727,1746447034057,-402.60581353,0.00035616,14]
[359954728,1746447034068,-400.0,0.00035616,14]
[359954729,1746447034077,-412.27648471,0.00035616,14]
[359954730,1746447034087,-546.12,0.00035616,14]
[359954731,1746447034097,-210.63447585,0.00035616,14]
[359954732,1746447034107,-400.0,0.00035616,14]
[359954733,1746447034117,-400.0,0.00035616,14]
[359954734,1746447034127,-406.66,0.00035616,14]
[359954735,1746447034137,-500.0,0.00035616,15]
[359954736,1746447034147,-500.0,0.00035616,14]
[359954737,1746447034157,-400.0,0.00035616,14]
[359954738,1746447034166,-400.0,0.00035616,14]
[359954739,1746447034176,-500.36647621,0.00035616,14]
[359954740,1746447034185,-400.0,0.00035616,14]
[359954741,1746447034195,-402.90109119,0.00035616,14]
[359954742,1746447034205,-400.0,0.00035616,14]
[359954743,1746447034214,-400.0,0.00035616,14]
[359954744,1746447034223,-400.0,0.00035616,14]
[359954745,1746447034233,-400.0,0.00035616,14]
[359954746,1746447034243,-522.10481605,0.00035616,14]
[359954747,1746447034253,-400.0,0.00035616,14]
[359954748,1746447034262,-400.0,0.00035616,14]
[359954749,1746447034272,-400.0,0.00035616,14]
[359954750,1746447034281,-401.66396262,0.00035616,14]
[359954751,1746447034291,-400.0,0.00035616,14]
[359954752,1746447034301,-400.0,0.00035616,14]
[359954753,1746447034311,-400.0,0.00035616,14]
[359954754,1746447034321,-400.0,0.00035616,14]
[359954755,1746447034331,-400.0,0.00035616,14]
[359954756,1746447034340,-400.0,0.00035616,14]
[359954757,1746447034349,-168.27680601,0.00035616,14]
[359954758,1746447034359,-468.4,0.00035616,14]
[359954759,1746447034369,-400.0,0.00035616,14]
[359954760,1746447034379,-207.29038792,0.00035616,14]
[359954761,1746447034389,-400.0,0.00035616,14]
[359954762,1746447034399,-517.35276652,0.00035616,14]
[359954763,1746447034409,-400.0,0.00035616,14]
[359954764,1746447034418,-208.01283144,0.00035616,14]
[359954765,1746447034428,-501.42649316,0.00035616,14]
[359954766,1746447034438,-400.0,0.00035616,14]
[359954767,1746447034448,-400.0,0.00035616,14]
[359954768,1746447034458,-519.25945595,0.00035616,14]
[359954769,1746447034468,-585.09,0.00035616,14]
[359954770,1746447034478,-400.0,0.00035616,14]
[359954771,1746447034488,-400.0,0.00035616,14]
[359954772,1746447034498,-400.0,0.00035616,14]
[359954773,1746447034629,-469.14,0.00035616,14]
[359954774,1746447034639,-1083.99,0.00035616,14]
[359954775,1746447034650,-503.71660098,0.00035616,14]
[359954776,1746447034660,-400.0,0.00035616,14]
[359954777,1746447034670,-187.45460401,0.00035616,14]
[359954778,1746447034680,-400.0,0.00035616,14]
[359954779,1746447034690,-400.0,0.00035616,14]
[359954780,1746447034700,-400.0,0.00035616,14]
[359954781,1746447034711,-402.07366038,0.00035616,14]
[359954782,1746447034721,-400.0,0.00035616,14]
[359954783,1746447034731,-400.0,0.00035616,14]
[359954784,1746447034742,-400.0,0.00035616,14]
[359954785,1746447034752,-400.0,0.00035616,14]
[359954786,1746447034762,-400.0,0.00035616,14]
[359954787,1746447034772,-400.0,0.00035616,14]
[359954788,1746447034782,-466.34,0.00035616,14]
[359954789,1746447034794,-400.0,0.00035616,14]
[359954790,1746447034803,-400.0,0.00035616,14]
[359954791,1746447034814,-400.0,0.00035616,14]
[359954792,1746447034828,-400.0,0.00035616,14]
[359954793,1746447034838,-400.0,0.00035616,14]
[359954794,1746447034847,-400.0,0.00035616,14]
[359954795,1746447034857,-400.0,0.00035616,14]
[359954796,1746447034867,-501.90950057,0.00035616,14]
[359954797,1746447034877,-400.0,0.00035616,14]
[359954798,1746447034887,-400.0,0.00035616,14]
[359954799,1746447034897,-504.01,0.00035616,14]
[359954800,1746447034907,-400.0,0.00035616,14]
[359954801,1746447034917,-400.0,0.00035616,14]
[359954802,1746447034927,-478.77,0.00035616,14]
[359954803,1746447034936,-468.02378816,0.00035616,14]
[359954804,1746447034945,-400.0,0.00035616,14]
[359954805,1746447034955,-400.0,0.00035616,14]
[359954806,1746447034968,-400.0,0.00035616,14]
[359954807,1746447034978,-525.86207865,0.00035616,14]
[359954808,1746447034988,-400.0,0.00035616,2]
[359954809,1746447034997,-400.0,0.00035616,14]
[359954810,1746447035007,-1625.79,0.00035616,14]
[359954811,1746447035017,-400.0,0.00035616,14]
[359954812,1746447035028,-400.0,0.00035616,14]
[359954813,1746447035039,-291.096907,0.00035616,14]
[359954814,1746447035048,-400.0,0.00035616,14]
[359954815,1746447035059,-782.91,0.00035616,14]
[359954816,1746447035074,-500.0,0.00035616,14]
[359954817,1746447035084,-400.0,0.00035616,14]
[359954818,1746447035093,-400.0,0.00035616,14]
[359954819,1746447035103,-400.0,0.00035616,14]
[359954820,1746447035113,-465.98,0.00035616,14]
[359954821,1746447035124,-400.0,0.00035616,14]
[359954822,1746447035133,-400.0,0.00035616,14]
[359954823,1746447035143,-400.0,0.00035616,14]
[359954824,1746447035153,-400.0,0.00035616,14]
[359954825,1746447035162,-400.0,0.00035616,14]
[359954826,1746447035172,-400.0,0.00035616,14]
[359954827,1746447035182,-2488.1,0.00035616,14]
[359954828,1746447035192,-570.42,0.00035616,14]
[359954829,1746447035202,-400.0,0.00035616,14]
[359954830,1746447035211,-400.0,0.00035616,14]
[359954831,1746447035221,-400.0,0.00035616,14]
[359954832,1746447035231,-400.0,0.00035616,14]
[359954833,1746447035242,-1843.23,0.00035616,14]
[359954834,1746447035251,-525.83,0.00035616,14]
[359954835,1746447035262,-400.0,0.00035616,14]
[359954836,1746447035271,-400.0,0.00035616,14]
[359954837,1746447035281,-400.0,0.00035616,14]
[359954838,1746447035292,-400.0,0.00035616,14]
[359954839,1746447035302,-400.0,0.00035616,14]
[359954840,1746447035313,-400.0,0.00035616,14]
[359954841,1746447035323,-400.0,0.00035616,14]
[359954842,1746447035333,-400.0,0.00035616,14]
[359954843,1746447035343,-628.52,0.00035616,14]
[359954844,1746447035353,-501.67255527,0.00035616,14]
[359954845,1746447035362,-223.34700228,0.00035616,14]
[359954846,1746447035372,-400.0,0.00035616,14]
[359954847,1746447035382,-400.0,0.00035616,14]
[359954848,1746447035391,-400.0,0.00035616,14]
[359954849,1746447035401,-418.32395766,0.00035616,14]
[359954850,1746447035411,-203.46924777,0.00035616,14]
[359954851,1746447035420,-205.43486957,0.00035616,14]
[359954852,1746447035430,-661.2,0.00035616,14]
[359954853,1746447035439,-713.13,0.00035616,14]
[359954854,1746447035449,-400.0,0.00035616,14]
[359954855,1746447035459,-401.95818055,0.00035616,14]
[359954856,1746447035467,-400.0,0.00035616,14]
[359954857,1746447035477,-400.0,0.00035616,14]
[359954858,1746447035487,-3111.68,0.00035616,14]
[359954859,1746447035497,-400.0,0.00035616,14]
[359954860,1746447035507,-831.51,0.00035616,14]
[359954861,1746447035516,-400.0,0.00035616,14]
[359954862,1746447035526,-501.75345957,0.00035616,14]
[359954863,1746447035536,-400.0,0.00035616,14]
[359954864,1746447035545,-400.0,0.00035616,14]
[359954865,1746447035554,-731.06,0.00035616,14]
[359954866,1746447035564,-510.43090287,0.00035616,14]
[359954867,1746447035574,-400.0,0.00035616,14]
[359954868,1746447035583,-413.32,0.00035616,14]
[359954869,1746447035593,-437.32,0.00035616,14]
[359954870,1746447035602,-335.06217758,0.00035616,14]
[359954871,1746447035612,-500.0,0.00035616,14]
[359954872,1746447035621,-400.0,0.00035616,14]
[359954873,1746447035631,-400.0,0.00035616,14]
[359954874,1746447035641,-400.0,0.00035616,14]
[359954875,1746447035650,-400.0,0.00035616,14]
[359954876,1746447035659,-523.11,0.00035616,14]
[359954877,1746447035669,-400.0,0.00035616,14]
[359954878,1746447035678,-400.0,0.00035616,14]
[359954879,1746447035687,-400.0,0.00035616,14]
[359954880,1746447035696,-400.0,0.00035616,14]
[359954881,1746447035705,-401.20839638,0.00035616,14]
[359954882,1746447035715,-400.0,0.00035616,14]
[359954883,1746447035725,-400.0,0.00035616,14]
[359954884,1746447035735,-400.0,0.00035616,14]
[359954885,1746447035748,-400.0,0.00035616,14]
[359954886,1746447035757,-400.0,0.00035616,14]
[359954887,1746447035767,-400.0,0.00035616,14]
[359954888,1746447035777,-208.12118685,0.00035616,14]
[359954889,1746447035788,-400.0,0.00035616,14]
[359954890,1746447035797,-532.96533643,0.00035616,14]
[359954891,1746447035807,-400.0,0.00035616,14]
[359954892,1746447035817,-400.0,0.00035616,14]
[359954893,1746447035827,-400.0,0.00035616,14]
[359954894,1746447035836,-400.0,0.00035616,14]
[359954895,1746447035846,-400.0,0.00035616,14]
[359954896,1746447035856,-400.0,0.00035616,14]
[359954897,1746447035866,-274.43157577,0.00035616,14]
[359954898,1746447035876,-400.0,0.00035616,14]
[359954899,1746447035885,-400.0,0.00035616,14]
[359954900,1746447035895,-400.0,0.00035616,14]
[359954901,1746447035904,-400.0,0.00035616,14]
[359954902,1746447035914,-400.0,0.00035616,14]
[359954903,1746447035924,-400.0,0.00035616,14]
[359954904,1746447035933,-400.0,0.00035616,14]
[359954905,1746447035942,-401.59942825,0.00035616,14]
[359954906,1746447035952,-400.0,0.00035616,14]
[359954907,1746447035961,-1182.06,0.00035616,14]
[359954908,1746447035971,-400.0,0.00035616,14]
[359954909,1746447035980,-400.0,0.00035616,14]
[359954910,1746447035990,-402.09651185,0.00035616,14]
[359954911,1746447035999,-400.0,0.00035616,14]
[359954912,1746447036009,-458.19504366,0.00035616,14]
[359954913,1746447036019,-500.0,0.00035616,14]
[359954914,1746447036028,-500.0,0.00035616,14]
[359954915,1746447036037,-500.0,0.00035616,14]
[359954916,1746447036047,-400.0,0.00035616,14]
[359954917,1746447036056,-500.0,0.00035616,14]
[359954918,1746447036067,-500.0,0.00035616,14]
[359954919,1746447036076,-500.0,0.00035616,14]
[359954920,1746447036087,-500.0,0.00035616,14]
[359954921,1746447036097,-500.0,0.00035616,14]
[359954922,1746447036108,-500.0,0.00035616,14]
[359954923,1746447036118,-400.0,0.00035616,14]
[359954924,1746447036128,-500.0,0.00035616,14]
[359954925,1746447036137,-400.0,0.00035616,14]
[359954926,1746447036147,-500.0,0.00035616,14]
[359954927,1746447036157,-500.0,0.00035616,14]
[359954928,1746447036167,-532.91740971,0.00035616,14]
[359954929,1746447036178,-556.24,0.00035616,14]
[359954930,1746447036188,-400.0,0.00035616,14]
[359954931,1746447036197,-400.0,0.00035616,14]
[359954932,1746447036207,-407.02643022,0.00035616,14]
[359954933,1746447036217,-625.26,0.00035616,14]
[359954934,1746447036226,-400.0,0.00035616,14]
[359954935,1746447036236,-505.21184569,0.00035616,14]
[359954936,1746447036245,-400.0,0.00035616,14]
[359954937,1746447036254,-400.0,0.00035616,14]
[359954938,1746447036264,-531.02,0.00035616,14]
[359954939,1746447036274,-400.0,0.00035616,14]
[359954940,1746447036283,-400.0,0.00035616,14]